bitfinex/quotes_BTCUSD_20240818
["timestamp","ask_amount","ask_price","bid_price","bid_amount"]
[1724003460080,2.26206203,59599.0,59598.0,0.99679819]
[1724003460297,0.003,59598.0,59597.0,0.6603075]
[1724003460504,0.003,59598.0,59556.0,0.1246]
[1724003460505,0.272504,59572.0,59556.0,0.1246]
[1724003460709,1.5537679,59598.0,59597.0,0.31918858]
[1724003460942,2.12644885,59598.0,59597.0,0.21320799]
[1724003461181,2.12644885,59598.0,59596.0,1.7513]
[1724003461182,1.057099,59597.0,59596.0,1.73768299]
[1724003461394,1.88152629,59597.0,59596.0,1.73768299]
[1724003461593,1.88152629,59597.0,59596.0,1.36838299]
[1724003461943,2.69611339,59597.0,59596.0,1.36838299]
[1724003462137,2.69611339,59597.0,59596.0,1.20058799]
[1724003462628,2.10783639,59597.0,59596.0,1.20058799]
[1724003462826,2.02737554,59597.0,59596.0,1.20058799]
[1724003463027,1.92737554,59597.0,59596.0,1.20058799]
[1724003463329,1.90437554,59597.0,59596.0,1.20058799]
[1724003463457,1.46456454,59597.0,59596.0,1.20058799]
[1724003463854,1.46356454,59597.0,59596.0,1.20058799]
[1724003464120,1.46456454,59597.0,59596.0,1.20149549]
[1724003464694,1.22865354,59597.0,59596.0,1.20149549]
[1724003465482,1.32865354,59597.0,59596.0,1.20149549]
[1724003465933,1.35165354,59597.0,59596.0,1.20149549]
[1724003467163,1.48800032,59597.0,59596.0,1.20149549]
[1724003467716,1.48900032,59597.0,59596.0,1.20149549]
[1724003468098,1.48800032,59597.0,59596.0,1.20149549]
[1724003469085,1.35165354,59597.0,59596.0,1.20149549]
[1724003469304,1.35265354,59597.0,59596.0,1.20149549]
[1724003469537,1.35165354,59597.0,59596.0,1.20149549]
[1724003470673,1.09374254,59597.0,59596.0,1.42179549]
[1724003470902,0.75883154,59597.0,59596.0,1.42179549]
[1724003472085,0.85883154,59597.0,59596.0,1.42179549]
[1724003475769,0.28983454,59597.0,59596.0,1.42179549]
[1724003475967,0.52474554,59597.0,59596.0,1.42179549]
[1724003476203,0.52474554,59597.0,59596.0,1.42379549]
[1724003476458,0.28983454,59597.0,59596.0,1.42379549]
[1724003476663,0.52474554,59597.0,59596.0,1.42179549]
[1724003476860,0.75965654,59597.0,59596.0,1.42179549]
[1724003480753,0.75965654,59597.0,59596.0,1.42379549]
[1724003480954,0.52474554,59597.0,59596.0,1.42379549]
[1724003481843,0.52474554,59597.0,59596.0,1.42179549]
[1724003481989,0.50463393,59597.0,59596.0,1.42179549]
[1724003483039,0.73954493,59597.0,59596.0,1.42179549]
[1724003483233,0.50463393,59597.0,59596.0,1.42179549]
[1724003486155,0.50463393,59597.0,59596.0,1.42379549]
[1724003487787,0.73954493,59597.0,59596.0,1.42179549]
[1724003488201,0.97445593,59597.0,59596.0,1.20149549]
[1724003490597,0.73954493,59597.0,59596.0,1.20149549]
[1724003490959,0.97445593,59597.0,59596.0,1.20149549]
[1724003491852,0.97445593,59597.0,59596.0,1.33159549]
[1724003493007,0.73954493,59597.0,59596.0,1.33159549]
[1724003493222,0.73954493,59597.0,59596.0,1.47349549]
[1724003498227,0.73954493,59597.0,59596.0,1.20149549]
[1724003498429,0.97445593,59597.0,59596.0,1.20149549]
[1724003499049,0.97545593,59597.0,59596.0,1.20149549]
[1724003499256,1.21955593,59597.0,59596.0,1.20149549]
[1724003499460,1.29922166,59597.0,59596.0,1.20149549]
[1724003499674,1.54426144,59597.0,59596.0,1.20149549]
[1724003500082,1.46359571,59597.0,59596.0,1.20149549]
[1724003500294,1.54426692,59597.0,59596.0,1.20149549]
[1724003502275,1.40016692,59597.0,59596.0,1.20149549]
[1724003502469,1.16525592,59597.0,59596.0,1.20149549]
[1724003503088,1.16525592,59597.0,59596.0,1.36509549]
[1724003503849,1.16525592,59597.0,59596.0,1.20149549]
[1724003506014,1.40016692,59597.0,59596.0,1.20149549]
[1724003506720,1.16525592,59597.0,59596.0,1.20149549]
[1724003507443,1.40016692,59597.0,59596.0,1.20149549]
[1724003509540,1.16525592,59597.0,59596.0,1.20149549]
[1724003512925,1.16525592,59597.0,59596.0,1.34399549]
[1724003514095,1.16525592,59597.0,59596.0,1.20149549]
[1724003515974,1.07958471,59597.0,59596.0,1.20149549]
[1724003517643,1.07958471,59597.0,59596.0,1.51659549]
[1724003517849,1.06945593,59597.0,59596.0,1.51659549]
[1724003518628,0.73454493,59597.0,59596.0,1.51659549]
[1724003519009,0.96945593,59597.0,59596.0,1.51659549]
[1724003526318,0.73454493,59597.0,59596.0,1.51659549]
[1724003527838,0.49963393,59597.0,59596.0,1.51659549]
[1724003528037,0.32807939,59597.0,59596.0,1.51659549]
[1724003528194,0.32807939,59597.0,59596.0,1.51759549]
[1724003528804,0.32807939,59597.0,59596.0,1.52059549]
[1724003529360,0.32807939,59597.0,59596.0,1.51759549]
[1724003529966,0.32807939,59597.0,59596.0,1.52059549]
[1724003531091,0.000825,59597.0,59596.0,1.51759549]
[1724003531322,0.11828,59597.0,59596.0,1.51759549]
[1724003531529,0.353191,59597.0,59596.0,1.51759549]
[1724003532569,0.11828,59597.0,59596.0,1.52059549]
[1724003532741,0.000825,59597.0,59596.0,1.51759549]
[1724003532946,0.11828,59597.0,59596.0,1.51759549]
[1724003533729,0.000825,59597.0,59596.0,1.51759549]
[1724003534131,0.000825,59597.0,59596.0,1.63505249]
[1724003534330,0.000825,59597.0,59596.0,2.10488249]
[1724003534507,0.000825,59597.0,59596.0,2.18668249]
[1724003534716,0.000825,59597.0,59596.0,2.18968249]
[1724003535312,0.000825,59597.0,59596.0,2.18668249]
[1724003535535,0.000825,59597.0,59596.0,1.95176749]
[1724003535753,0.000825,59597.0,59596.0,1.95476749]
[1724003536060,0.000825,59597.0,59596.0,2.18968249]
[1724003536402,0.000825,59597.0,59596.0,2.31248249]
[1724003537928,0.000825,59597.0,59596.0,2.30948249]
[1724003538321,0.000825,59597.0,59596.0,2.31248249]
[1724003538527,0.000825,59597.0,59596.0,2.30948249]
[1724003538927,0.000825,59597.0,59596.0,2.31248249]
[1724003539790,0.000825,59597.0,59596.0,2.30948249]
[1724003540192,0.000825,59597.0,59596.0,2.31248249]
[1724003540960,0.000825,59597.0,59596.0,2.30948249]
[1724003541162,0.000825,59597.0,59596.0,2.31248249]
[1724003542217,0.000825,59597.0,59596.0,2.48403703]
[1724003543698,0.000825,59597.0,59596.0,1.86996749]
[1724003543902,0.000825,59597.0,59596.0,1.87296749]
[1724003544100,0.000825,59597.0,59596.0,2.10488249]
[1724003544749,0.000825,59597.0,59596.0,2.10788249]
[1724003547530,0.000825,59597.0,59596.0,2.10488249]
[1724003548565,0.000825,59597.0,59596.0,2.51135203]
[1724003551460,0.000825,59597.0,59596.0,2.27643703]
[1724003551889,0.000825,59597.0,59596.0,2.27943703]
[1724003552100,0.000825,59597.0,59596.0,2.51135203]
[1724003552328,0.000825,59597.0,59596.0,2.27943703]
[1724003552733,0.000825,59597.0,59596.0,2.51435203]
[1724003552933,0.000825,59597.0,59596.0,2.27943703]
[1724003553354,0.000825,59597.0,59596.0,2.51435203]
[1724003553551,0.000825,59597.0,59596.0,2.27943703]
[1724003553768,0.000825,59597.0,59596.0,2.51435203]
[1724003553931,0.000825,59597.0,59596.0,2.27943703]
[1724003554296,0.000825,59597.0,59596.0,2.51135203]
[1724003556046,0.000825,59597.0,59596.0,2.61435203]
[1724003556266,0.000825,59597.0,59596.0,2.61135203]
[1724003557542,0.000825,59597.0,59596.0,2.61535203]
[1724003557763,0.000825,59597.0,59596.0,2.63435203]
[1724003558021,0.000825,59597.0,59596.0,2.68469565]
[1724003558456,0.000825,59597.0,59596.0,2.63735203]
[1724003560288,0.000825,59597.0,59596.0,2.61435203]
[1724003561107,0.000825,59597.0,59596.0,2.61535203]
[1724003561596,0.000825,59597.0,59596.0,2.61135203]
[1724003564325,0.000825,59597.0,59596.0,2.66154013]
[1724003568450,0.000825,59597.0,59596.0,2.74334013]
[1724003569377,0.000825,59597.0,59596.0,2.69315203]
[1724003570397,0.000825,59597.0,59596.0,3.06535505]
[1724003570832,0.000825,59597.0,59596.0,3.06534627]
[1724003571448,0.000825,59597.0,59596.0,3.16879429]
[1724003571577,0.000825,59597.0,59596.0,3.06834627]
[1724003571979,0.000825,59597.0,59596.0,3.14369555]
[1724003572407,0.000825,59597.0,59596.0,3.06834627]
[1724003572560,0.000825,59597.0,59596.0,3.06934627]
[1724003572966,0.000825,59597.0,59596.0,3.06834627]
[1724003573445,0.000825,59597.0,59596.0,3.16879429]
[1724003573661,0.000825,59597.0,59596.0,3.06834627]
[1724003574069,0.000825,59597.0,59596.0,3.16979429]
[1724003574427,0.000825,59597.0,59596.0,3.16987102]
[1724003574842,0.000825,59597.0,59596.0,3.16887102]
[1724003575240,0.000825,59597.0,59596.0,3.1939063]
[1724003575893,0.000825,59597.0,59596.0,3.1949063]
[1724003576607,0.000825,59597.0,59596.0,2.93401843]
[1724003576942,0.000825,59597.0,59596.0,2.83343127]
[1724003578454,0.000825,59597.0,59596.0,2.93401843]
[1724003579096,0.000825,59597.0,59596.0,1.67827689]
[1724003579334,0.000825,59597.0,59596.0,1.20549549]
[1724003579564,0.000825,59597.0,59596.0,1.40475249]
[1724003580178,0.000825,59597.0,59596.0,1.20549549]
[1724003580293,0.000825,59597.0,59596.0,1.28429549]
[1724003582609,0.000825,59597.0,59596.0,1.29599997]
[1724003582757,0.000825,59597.0,59596.0,1.29544786]
[1724003583986,0.839702,59597.0,59596.0,1.20149549]
[1724003584212,1.01125654,59597.0,59596.0,1.20149549]
[1724003584411,1.24616754,59597.0,59596.0,1.20149549]
[1724003586707,0.839702,59597.0,59596.0,1.20149549]
[1724003598459,0.839702,59597.0,59596.0,1.20349549]
[1724003599320,1.074613,59597.0,59596.0,1.20149549]
[1724003599532,1.24616754,59597.0,59596.0,1.20349549]
[1724003602380,0.727902,59597.0,59596.0,1.20149549]
[1724003602597,0.353191,59597.0,59596.0,1.20149549]
[1724003603325,0.588102,59597.0,59596.0,1.20149549]
[1724003604424,0.588102,59597.0,59596.0,1.20349549]
[1724003604630,1.13436754,59597.0,59596.0,1.20349549]
[1724003604776,1.24566754,59597.0,59596.0,1.20349549]
[1724003605516,1.24566754,59597.0,59596.0,1.20149549]
[1724003608186,1.48057854,59597.0,59596.0,1.20149549]
[1724003608571,1.58057854,59597.0,59596.0,1.20149549]
[1724003611743,1.66264159,59597.0,59596.0,1.20149549]
[1724003612776,2.16603159,59597.0,59596.0,1.20149549]
[1724003613459,2.50584259,59597.0,59596.0,1.20149549]
[1724003614423,2.42394259,59597.0,59596.0,1.20149549]
[1724003614628,2.18903159,59597.0,59596.0,1.20149549]
[1724003616008,2.36058613,59597.0,59596.0,1.20149549]
[1724003616641,2.18903159,59597.0,59596.0,1.20149549]
[1724003623005,2.16603159,59597.0,59596.0,1.20149549]
[1724003623175,2.05473159,59597.0,59596.0,1.20149549]
[1724003623663,1.91493159,59597.0,59596.0,1.20149549]
[1724003626948,2.26822787,59597.0,59596.0,1.20149549]
[1724003627316,2.21843159,59597.0,59596.0,1.20149549]
[1724003627737,2.45334259,59597.0,59596.0,1.20149549]
[1724003628311,2.55293516,59597.0,59596.0,1.20149549]
[1724003628519,2.45334259,59597.0,59596.0,1.20149549]
[1724003628729,2.55293516,59597.0,59596.0,1.20149549]
[1724003629337,2.5529463,59597.0,59596.0,1.20149549]
[1724003630605,2.85980813,59597.0,59596.0,1.03370049]
[1724003630937,2.86080813,59597.0,59596.0,1.03370049]
[1724003631936,2.85980813,59597.0,59596.0,1.03370049]
[1724003632152,2.86080813,59597.0,59596.0,0.93302349]
[1724003632580,2.96037487,59597.0,59596.0,0.93302349]
[1724003632796,2.95937487,59597.0,59596.0,0.93302349]
[1724003633230,2.96037487,59597.0,59596.0,0.76522849]
[1724003633463,2.86080813,59597.0,59596.0,0.76522849]
[1724003634102,2.86080813,59597.0,59596.0,0.73166949]
[1724003634302,2.86080813,59597.0,59596.0,0.59743349]
[1724003635116,2.9851997,59597.0,59596.0,0.53031549]
[1724003635317,2.9851997,59597.0,59596.0,0.42963849]
[1724003635835,2.86080813,59597.0,59596.0,0.42963849]
[1724003636235,2.86080813,59597.0,59596.0,0.36252049]
[1724003637081,2.86080813,59597.0,59596.0,0.26184349]
[1724003637374,2.86080813,59597.0,59596.0,0.09404849]
[1724003637791,2.85980813,59597.0,59596.0,0.09404849]
[1724003638196,2.86080813,59597.0,59596.0,4.9e-07]
[1724003639035,2.85980813,59597.0,59596.0,4.9e-07]
[1724003639392,2.86080813,59597.0,59596.0,4.9e-07]
[1724003640126,2.85980813,59597.0,59596.0,4.9e-07]
[1724003640276,2.68825359,59597.0,59596.0,4.9e-07]
[1724003640479,2.68925359,59597.0,59596.0,4.9e-07]
[1724003640682,2.76285229,59597.0,59596.0,4.9e-07]
[1724003641000,2.77015359,59597.0,59596.0,4.9e-07]
[1724003641161,2.77115359,59597.0,59596.0,4.9e-07]
[1724003641366,2.91134482,59597.0,59596.0,4.9e-07]
[1724003641570,2.02783159,59597.0,59596.0,4.9e-07]
[1724003642002,1.94576854,59597.0,59596.0,4.9e-07]
[1724003642846,1.96876854,59597.0,59596.0,4.9e-07]
[1724003645240,2.05084146,59597.0,59596.0,4.9e-07]
[1724003645501,2.04984146,59597.0,59596.0,4.9e-07]
[1724003645699,2.04984146,59597.0,59596.0,0.31860049]
[1724003645700,1.81494146,59597.0,59596.0,0.31860049]
[1724003645903,1.49795754,59597.0,59596.0,0.31860049]
[1724003647062,1.59795754,59597.0,59596.0,0.31860049]
[1724003649323,1.36304654,59597.0,59596.0,0.31860049]
[1724003649540,1.36304654,59597.0,59596.0,0.32060049]
[1724003649775,1.36304654,59597.0,59596.0,0.31860049]
[1724003651194,1.26304654,59597.0,59596.0,0.31860049]
[1724003659020,1.49795754,59597.0,59596.0,0.31860049]
[1724003659883,1.26304654,59597.0,59596.0,0.31860049]
[1724003660497,1.49795754,59597.0,59596.0,0.31860049]
[1724003660701,1.26304654,59597.0,59596.0,0.31860049]
[1724003660989,1.49795754,59597.0,59596.0,0.31860049]
[1724003661119,1.49795754,59597.0,59596.0,0.32980069]
[1724003662869,1.49795754,59597.0,59596.0,0.01120069]
[1724003663052,1.57045404,59597.0,59596.0,0.01120069]
[1724003663433,1.57145404,59597.0,59596.0,0.01120069]
[1724003663806,1.67045404,59597.0,59596.0,0.01120069]
[1724003663981,1.90536504,59597.0,59596.0,0.01120069]
[1724003664183,1.90536504,59597.0,59596.0,4.9e-07]
[1724003665227,1.67045404,59597.0,59596.0,4.9e-07]
[1724003665462,1.75250733,59597.0,59596.0,4.9e-07]
[1724003665634,1.90536504,59597.0,59596.0,4.9e-07]
[1724003665842,1.67045404,59597.0,59596.0,4.9e-07]
[1724003667185,1.90536504,59597.0,59596.0,4.9e-07]
[1724003667539,1.98741937,59597.0,59596.0,4.9e-07]
[1724003668293,1.75250837,59597.0,59596.0,4.9e-07]
[1724003668465,1.83440837,59597.0,59596.0,4.9e-07]
[1724003669433,2.07031937,59597.0,59596.0,4.9e-07]
[1724003669641,2.09231937,59597.0,59596.0,4.9e-07]
[1724003670019,2.02082287,59597.0,59596.0,4.9e-07]
[1724003672081,2.01982287,59597.0,59596.0,4.9e-07]
[1724003672282,1.68001187,59597.0,59596.0,0.29730049]
[1724003672531,1.59795754,59597.0,59596.0,0.29730049]
[1724003672738,1.59795754,59597.0,59596.0,0.30865159]
[1724003674407,1.68049326,59597.0,59596.0,0.30865159]
[1724003681680,1.58049326,59597.0,59596.0,0.30865159]
[1724003683168,0.62167,59597.0,59596.0,0.39155159]
[1724003683398,0.856581,59597.0,59596.0,0.39455159]
[1724003683873,0.504215,59597.0,59596.0,0.39455159]
[1724003684364,0.504215,59597.0,59596.0,0.31265159]
[1724003684619,0.504215,59597.0,59596.0,0.39455159]
[1724003702228,0.62167,59597.0,59596.0,0.39255159]
[1724003702483,1.091492,59597.0,59596.0,0.39255159]
[1724003704352,1.091492,59597.0,59596.0,0.30865159]
[1724003704353,1.326403,59597.0,59596.0,0.30865159]
[1724003705723,1.49795754,59597.0,59596.0,0.01135159]
[1724003711585,1.49795754,59597.0,59596.0,0.17985159]
[1724003712594,1.26304654,59597.0,59596.0,0.26175159]
[1724003712769,1.26304654,59597.0,59596.0,0.39455159]
[1724003714718,1.26304654,59597.0,59596.0,0.39655159]
[1724003714939,1.26304654,59597.0,59596.0,0.39455159]
[1724003719321,1.26304654,59597.0,59596.0,0.39555159]
[1724003719322,0.62167,59597.0,59596.0,0.39555159]
[1724003719438,0.504215,59597.0,59596.0,0.39555159]
[1724003719636,0.504215,59597.0,59596.0,0.39655159]
[1724003719895,0.504215,59597.0,59596.0,0.39555159]
[1724003720131,0.504215,59597.0,59596.0,0.39655159]
[1724003720555,0.504215,59597.0,59596.0,0.39555159]
[1724003720758,0.504215,59597.0,59596.0,0.39655159]
[1724003721288,0.62167,59597.0,59596.0,0.39855159]
[1724003721517,0.504215,59597.0,59596.0,0.39555159]
[1724003722099,0.504215,59597.0,59596.0,0.39655159]
[1724003722527,0.504215,59597.0,59596.0,0.39555159]
[1724003722929,0.504215,59597.0,59596.0,0.39655159]
[1724003724310,0.504215,59597.0,59596.0,0.39855159]
[1724003724722,0.504215,59597.0,59596.0,0.39555159]
[1724003725734,0.504215,59597.0,59596.0,0.39855159]
[1724003725934,0.504215,59597.0,59596.0,0.39555159]
[1724003726755,0.504215,59597.0,59596.0,0.39655159]
[1724003727170,0.62167,59597.0,59596.0,0.39655159]
[1724003727433,0.62167,59597.0,59596.0,0.39555159]
[1724003727770,0.62167,59597.0,59596.0,0.31365159]
[1724003727973,0.62167,59597.0,59596.0,0.31265159]
[1724003727974,1.091492,59597.0,59596.0,0.31265159]
[1724003728174,1.26304654,59597.0,59596.0,0.01135159]
[1724003728379,1.49795754,59597.0,59596.0,0.01135159]
[1724003728621,1.58062677,59597.0,59596.0,0.01135159]
[1724003728888,1.62872677,59597.0,59596.0,0.01135159]
[1724003729091,1.62772677,59597.0,59596.0,0.01135159]
[1724003729263,1.62772677,59597.0,59596.0,4.9e-07]
[1724003730662,1.79928131,59597.0,59596.0,4.9e-07]
[1724003730843,2.08411412,59597.0,59596.0,4.9e-07]
[1724003731048,2.23275776,59597.0,59596.0,4.9e-07]
[1724003731286,2.27972603,59597.0,59596.0,4.9e-07]
[1724003731739,2.20483595,59597.0,59596.0,4.9e-07]
[1724003732133,2.27970297,59597.0,59596.0,4.9e-07]
[1724003732360,2.10814843,59597.0,59596.0,4.9e-07]
[1724003732976,2.10914843,59597.0,59596.0,4.9e-07]
[1724003733176,2.03428141,59597.0,59596.0,4.9e-07]
[1724003733533,2.03328141,59597.0,59596.0,4.9e-07]
[1724003734171,2.08317221,59597.0,59596.0,4.9e-07]
[1724003734851,2.08417221,59597.0,59596.0,4.9e-07]
[1724003735317,2.03428141,59597.0,59596.0,4.9e-07]
[1724003737666,2.03328141,59597.0,59596.0,4.9e-07]
[1724003737882,1.69167041,59597.0,59596.0,4.9e-07]
[1724003738877,1.69067041,59597.0,59596.0,4.9e-07]
[1724003741163,1.69167041,59597.0,59596.0,4.9e-07]
[1724003742940,1.69067041,59597.0,59596.0,4.9e-07]
[1724003743723,1.69167041,59597.0,59596.0,4.9e-07]
[1724003744043,1.69067041,59597.0,59596.0,4.9e-07]
[1724003752674,1.69167041,59597.0,59596.0,4.9e-07]
[1724003753713,1.69067041,59597.0,59596.0,4.9e-07]
[1724003753912,1.69167041,59597.0,59596.0,4.9e-07]
[1724003754152,1.69067041,59597.0,59596.0,4.9e-07]
[1724003757533,1.92558141,59597.0,59596.0,4.9e-07]
[1724003757735,1.94958141,59597.0,59596.0,4.9e-07]
[1724003757950,1.94858141,59597.0,59596.0,4.9e-07]
[1724003760633,1.96158141,59597.0,59596.0,0.00100049]
[1724003762685,1.96258141,59597.0,59596.0,0.00100049]
[1724003764208,1.96258141,59597.0,59596.0,0.10760049]
[1724003764397,1.96158141,59597.0,59596.0,0.10760049]
[1724003764567,1.96258141,59597.0,59596.0,0.10760049]
[1724003764770,1.69362677,59597.0,59596.0,0.24620049]
[1724003765329,1.45871577,59597.0,59596.0,0.24620049]
[1724003765530,0.59988423,59597.0,59596.0,0.33210049]
[1724003765759,0.517215,59597.0,59596.0,0.32910049]
[1724003765924,0.517215,59597.0,59596.0,0.32810049]
[1724003766125,0.62167,59597.0,59596.0,0.24520049]
[1724003766329,0.518215,59597.0,59596.0,0.24520049]
[1724003766529,0.518215,59597.0,59596.0,0.24920049]
[1724003766731,0.504215,59597.0,59596.0,0.24920049]
[1724003767136,0.508215,59597.0,59596.0,0.24920049]
[1724003767296,0.508215,59597.0,59596.0,0.24620049]
[1724003767493,0.508215,59597.0,59596.0,0.24920049]
[1724003768543,0.62567,59597.0,59596.0,0.24920049]
[1724003768745,0.62567,59597.0,59596.0,0.24720049]
[1724003769501,0.62567,59597.0,59596.0,0.24520049]
[1724003772238,0.62567,59597.0,59596.0,0.24720049]
[1724003773197,0.860581,59597.0,59596.0,0.24520049]
[1724003773419,0.860581,59597.0,59596.0,0.24720049]
[1724003773579,0.860581,59597.0,59596.0,0.24520049]
[1724003775696,0.62567,59597.0,59596.0,0.24520049]
[1724003775911,0.62567,59597.0,59596.0,0.24720049]
[1724003776111,0.62567,59597.0,59596.0,0.24520049]
[1724003776490,0.62567,59597.0,59596.0,0.24720049]
[1724003776691,0.508215,59597.0,59596.0,0.24520049]
[1724003777096,0.62567,59597.0,59596.0,0.24520049]
[1724003777849,0.62567,59597.0,59596.0,0.24620049]
[1724003777850,0.508215,59597.0,59596.0,0.24620049]
[1724003778935,0.508215,59597.0,59596.0,0.59857249]
[1724003779101,0.508215,59597.0,59596.0,0.36665749]
[1724003779345,0.508215,59597.0,59596.0,0.59857249]
[1724003779544,0.508215,59597.0,59596.0,0.36365749]
[1724003779874,0.508215,59597.0,59596.0,0.68047249]
[1724003780701,0.508215,59597.0,59596.0,0.91538749]
[1724003781678,0.508215,59597.0,59596.0,0.91838749]
[1724003781874,0.09632663,59597.0,59596.0,1.15330249]
[1724003782131,0.000825,59600.0,59599.0,0.93376]
[1724003782333,0.000825,59600.0,59599.0,1.66011754]
[1724003782539,0.000825,59600.0,59599.0,1.73557919]
[1724003782935,0.000825,59600.0,59599.0,2.11375893]
[1724003783120,0.000825,59600.0,59599.0,1.66011754]
[1724003783877,0.000825,59600.0,59599.0,1.66311754]
[1724003784079,0.000825,59600.0,59599.0,1.66411754]
[1724003784484,0.000825,59600.0,59599.0,1.71433076]
[1724003784881,0.000825,59600.0,59599.0,1.66011754]
[1724003785106,0.001825,59600.0,59599.0,1.67211754]
[1724003786035,0.001825,59600.0,59599.0,1.43121454]
[1724003786230,0.001825,59600.0,59599.0,1.43421454]
[1724003790183,0.001825,59600.0,59599.0,1.42121454]
[1724003790761,0.002825,59600.0,59599.0,1.43321454]
[1724003790970,0.002825,59600.0,59599.0,0.944857]
[1724003791170,0.002825,59600.0,59599.0,1.026757]
[1724003795050,0.002825,59600.0,59599.0,1.023757]
[1724003796667,0.002825,59600.0,59599.0,1.026757]
[1724003799387,0.002825,59600.0,59599.0,1.023757]
[1724003800015,0.002825,59600.0,59599.0,1.0246634]
[1724003800619,0.002825,59600.0,59599.0,0.8457634]
[1724003800836,0.002825,59600.0,59599.0,0.4578574]
[1724003801600,0.002825,59600.0,59599.0,0.6927604]
[1724003803449,0.002825,59600.0,59599.0,0.1639064]
[1724003803648,0.002825,59600.0,59599.0,0.2488064]
[1724003803848,0.002825,59600.0,59599.0,0.1048064]
[1724003804423,0.002825,59600.0,59599.0,0.0988064]
[1724003804424,0.001825,59600.0,59599.0,0.0988064]
[1724003804636,0.000825,59600.0,59599.0,0.2187064]
[1724003804834,0.001825,59600.0,59599.0,0.2247064]
[1724003805035,0.001825,59600.0,59599.0,0.2327064]
[1724003807630,0.001825,59600.0,59599.0,0.1008064]
[1724003807631,0.119274,59600.0,59599.0,0.1008064]
[1724003807833,0.232274,59600.0,59599.0,0.1008064]
[1724003808275,0.467173,59600.0,59599.0,0.1008064]
[1724003808434,0.232274,59600.0,59599.0,0.1008064]
[1724003808836,0.232274,59600.0,59599.0,0.0978064]
[1724003809080,0.232274,59600.0,59599.0,0.0988064]
[1724003809279,0.232274,59600.0,59599.0,0.0978064]
[1724003809685,0.231274,59600.0,59599.0,0.0918064]
[1724003809904,0.231274,59600.0,59599.0,0.0888064]
[1724003810100,0.231274,59600.0,59599.0,0.0898064]
[1724003813118,0.113825,59600.0,59599.0,0.0898064]
[1724003813315,0.000825,59600.0,59599.0,0.3320064]
[1724003813718,0.118274,59600.0,59599.0,0.3320064]
[1724003814132,0.118274,59600.0,59599.0,0.3310064]
[1724003817477,0.118274,59600.0,59599.0,0.3340064]
[1724003817683,0.118274,59600.0,59599.0,0.3310064]
[1724003818515,0.1180972,59600.0,59599.0,0.3310064]
[1724003819143,0.0006482,59600.0,59599.0,0.3340064]
[1724003819357,0.0006482,59600.0,59599.0,0.3310064]
[1724003821060,0.0006482,59600.0,59599.0,0.33436191]
[1724003821563,0.0006482,59600.0,59599.0,0.3310064]
[1724003822347,0.0006482,59600.0,59599.0,0.3340064]
[1724003822592,0.0006482,59600.0,59599.0,0.3310064]
[1724003822791,0.0006482,59600.0,59599.0,0.4484574]
[1724003822992,0.0006482,59600.0,59599.0,0.45481268]
[1724003823440,0.0006482,59600.0,59599.0,0.45181268]
[1724003824229,0.0006482,59600.0,59599.0,0.45481268]
[1724003824843,0.0006482,59600.0,59599.0,0.33736168]
[1724003826012,0.0006482,59600.0,59599.0,0.3340064]
[1724003826127,0.0006482,59600.0,59599.0,0.45481273]
[1724003826351,0.0006482,59600.0,59599.0,0.45181273]
[1724003827784,0.0006482,59600.0,59599.0,0.68671573]
[1724003827991,0.0006482,59600.0,59599.0,0.68971573]
[1724003830209,0.0006482,59600.0,59599.0,0.92161873]
[1724003831270,0.0006482,59600.0,59599.0,0.92461873]
[1724003831678,0.0006482,59600.0,59599.0,0.9212634]
[1724003832001,0.0006482,59600.0,59599.0,0.9182634]
[1724003832761,0.0006482,59600.0,59599.0,0.9212634]
[1724003837972,0.0006482,59600.0,59599.0,0.6044604]
[1724003838329,0.0006482,59600.0,59599.0,0.6863604]
[1724003849095,0.0006482,59600.0,59599.0,0.9212634]
[1724003849320,0.0006482,59600.0,59599.0,0.9182634]
[1724003850093,0.0006482,59600.0,59599.0,0.6833604]
[1724003851620,0.0006482,59600.0,59599.0,0.6044604]
[1724003851790,0.0006482,59600.0,59599.0,0.6863604]
[1724003855521,0.0006482,59600.0,59599.0,0.73665825]
[1724003857892,0.0006482,59600.0,59599.0,0.73673909]
[1724003858244,0.0006482,59600.0,59599.0,0.50183609]
[1724003858451,0.0006482,59600.0,59599.0,0.6863604]
[1724003860381,0.0006482,59600.0,59599.0,0.76192843]
[1724003861195,0.0006482,59600.0,59599.0,0.6863604]
[1724003863504,0.0006482,59600.0,59599.0,0.7619542]
[1724003864043,0.0006482,59600.0,59599.0,0.9938572]
[1724003864189,0.0006482,59600.0,59599.0,0.7589542]
[1724003865002,0.0006482,59600.0,59599.0,1.36611958]
[1724003865204,0.0006482,59600.0,59599.0,1.29052578]
[1724003865415,0.0006482,59600.0,59599.0,1.05562278]
[1724003866813,0.0006482,59600.0,59599.0,1.29052578]
[1724003867020,0.0006482,59600.0,59599.0,1.05562278]
[1724003867215,0.0006482,59600.0,59599.0,1.05561839]
[1724003867635,0.0006482,59600.0,59599.0,1.79697893]
[1724003868031,0.0006482,59600.0,59599.0,2.31807799]
[1724003868282,0.0006482,59600.0,59599.0,2.32809863]
[1724003868486,0.0006482,59600.0,59599.0,2.32709863]
[1724003868671,0.0006482,59600.0,59599.0,2.47819618]
[1724003869217,0.0006482,59600.0,59599.0,2.48519618]
[1724003869444,0.0006482,59600.0,59599.0,1.80499957]
[1724003869817,0.0006482,59600.0,59599.0,1.82699957]
[1724003870044,0.0016482,59600.0,59599.0,1.82399957]
[1724003870245,0.0016482,59600.0,59599.0,1.82699957]
[1724003870450,0.0006482,59600.0,59599.0,1.81899957]
[1724003870605,0.0006482,59600.0,59599.0,1.81599957]
[1724003870806,0.0016482,59600.0,59599.0,1.82399957]
[1724003871007,0.0016482,59600.0,59599.0,1.80999957]
[1724003871420,0.0016482,59600.0,59599.0,1.82399957]
[1724003871843,0.0016482,59600.0,59599.0,1.82393442]
[1724003872047,0.0006482,59600.0,59599.0,2.05183742]
[1724003872221,0.0006482,59600.0,59599.0,2.07483742]
[1724003872474,0.000825,59621.0,59613.0,0.493672]
[1724003872682,0.000825,59621.0,59613.0,1.08927454]
[1724003872904,0.000825,59621.0,59613.0,1.69625132]
[1724003873322,0.000825,59621.0,59613.0,1.79681121]
[1724003873795,0.000825,59621.0,59613.0,1.79981121]
[1724003874427,0.000825,59621.0,59613.0,1.70525132]
[1724003874597,0.000825,59621.0,59613.0,1.71547473]
[1724003874975,0.000825,59621.0,59613.0,1.71847473]
[1724003875213,0.000825,59621.0,59613.0,1.71547473]
[1724003875414,0.000825,59621.0,59613.0,1.42370408]
[1724003875795,0.000825,59621.0,59613.0,1.34834595]
[1724003876018,0.000825,59621.0,59613.0,1.34934595]
[1724003876350,0.000825,59621.0,59613.0,1.72246123]
[1724003876571,0.000825,59621.0,59613.0,1.79778929]
[1724003878583,0.000825,59621.0,59613.0,1.34334595]
[1724003879405,0.000825,59621.0,59613.0,1.39353931]
[1724003880318,0.000825,59621.0,59613.0,1.40053931]